bitfinex/quotes_SOLUSD_20251018
["timestamp","ask_amount","ask_price","bid_price","bid_amount"]
[1760762720904,2.30461069,183.54,183.46,19.17762478]
[1760762721301,2.30461069,183.54,183.46,47.03762478]
[1760762721505,0.66,183.58,183.47,14.44811918]
[1760762721850,2.30461069,183.56,183.48,27.86]
[1760762722045,2.30461069,183.56,183.47,14.44811918]
[1760762722255,2.30461069,183.56,183.48,27.86]
[1760762722546,2.30461069,183.56,183.49,0.72]
[1760762722843,2.30461069,183.57,183.49,49.42461069]
[1760762723046,2.30461069,183.57,183.5,19.79356948]
[1760762723242,2.30461069,183.57,183.51,0.72]
[1760762723544,2.30461069,183.57,183.51,63.50583171]
[1760762723747,2.30461069,183.57,183.52,0.72]
[1760762724168,2.30461069,183.57,183.53,19.07045169]
[1760762724456,2.30461069,183.57,183.54,0.72]
[1760762724855,2.30461069,183.6,183.54,0.72]
[1760762725334,2.30461069,183.6,183.55,16.3831472]
[1760762725529,2.30461069,183.6,183.56,0.72]
[1760762726136,2.30461069,183.6,183.57,5.44751321]
[1760762726339,2.30461069,183.59,183.58,0.72]
[1760762726536,2.30461069,183.59,183.57,5.44751321]
[1760762726743,2.30461069,183.58,183.55,52.56808808]
[1760762726953,2.30461069,183.58,183.56,0.72]
[1760762727832,2.30461069,183.58,183.55,51.84808808]
[1760762727833,0.66,183.61,183.57,0.72]
[1760762728164,2.30461069,183.58,183.57,0.72]
[1760762728461,2.30461069,183.58,183.57,6.16751321]
[1760762728837,2.30461069,183.58,183.57,5.44751321]
[1760762729339,2.30461069,183.59,183.57,6.16751321]
[1760762729949,2.30461069,183.59,183.57,52.56751321]
[1760762731549,2.30461069,183.59,183.57,51.84751321]
[1760762731757,2.30461069,183.59,183.57,52.56751321]
[1760762731945,2.30461069,183.59,183.58,6.16721647]
[1760762732251,2.30461069,183.6,183.58,6.16721647]
[1760762732554,2.30461069,183.6,183.59,0.72]
[1760762733251,2.30461069,183.62,183.59,47.12]
[1760762733451,2.30461069,183.62,183.6,0.72]
[1760762733847,2.30461069,183.61,183.6,0.72]
[1760762734048,2.30461069,183.61,183.6,6.16662309]
[1760762734939,2.30461069,183.61,183.6,52.56662309]
[1760762735153,2.30461069,183.61,183.6,51.84662309]
[1760762735356,2.30461069,183.61,183.6,46.4]
[1760762735658,2.96461069,183.61,183.6,46.4]
[1760762736047,2.30461069,183.61,183.6,46.4]
[1760762737462,2.96461069,183.61,183.6,46.4]
[1760762738164,5.26922138,183.61,183.57,46.4]
[1760762738350,2.30461069,183.58,183.57,46.4]
[1760762738664,2.96461069,183.58,183.57,46.4]
[1760762740264,2.96461069,183.58,183.54,46.4]
[1760762740444,2.30461069,183.55,183.54,46.4]
[1760762740646,2.96461069,183.55,183.51,46.4]
[1760762740847,2.30461069,183.52,183.51,46.4]
[1760762746865,0.66,183.57,183.51,47.09]
[1760762747159,2.30461069,183.52,183.51,0.69]
[1760762747363,2.30461069,183.52,183.51,47.09]
[1760762749363,2.30461069,183.52,183.51,52.53929431]
[1760762750263,2.30461069,183.53,183.51,52.53929431]
[1760762750463,2.30461069,183.53,183.52,0.69]
[1760762750862,2.30461069,183.53,183.52,6.13899738]
[1760762751169,2.30461069,183.53,183.52,52.53899738]
[1760762752160,22.88,183.59,183.52,52.53899738]
[1760762752361,2.30461069,183.57,183.53,0.69]
[1760762752646,2.30461069,183.56,183.53,0.69]
[1760762752846,2.30461069,183.55,183.54,5.44840361]
[1760762753059,2.30461069,183.55,183.54,52.53840361]
[1760762756181,2.30461069,183.56,183.54,52.53840361]
[1760762756355,2.30461069,183.56,183.55,6.13810678]
[1760762756870,2.30461069,183.56,183.55,52.53810678]
[1760762757067,2.30461069,183.57,183.55,52.53810678]
[1760762757270,2.30461069,183.57,183.56,0.69]
[1760762758062,2.30461069,183.57,183.56,6.13780998]
[1760762758357,2.30461069,183.57,183.56,5.44780998]
[1760762758869,0.66,183.63,183.56,52.53780998]
[1760762759169,2.30461069,183.59,183.57,0.69]
[1760762759355,1.47516057,183.59,183.58,0.69]
[1760762759567,1.47516057,183.59,183.58,46.4]
[1760762759957,1.47516057,183.6,183.58,51.84710304]
[1760762760274,1.47516057,183.6,183.58,52.53710304]
[1760762760468,1.47516057,183.61,183.59,0.69]
[1760762760773,1.47516057,183.61,183.59,47.09]
[1760762760973,1.47516057,183.61,183.6,0.69]
[1760762761360,1.47516057,183.62,183.6,0.69]
[1760762761977,1.47516057,183.62,183.6,6.13649704]
[1760762762275,1.47516057,183.62,183.61,0.69]
[1760762762461,1.47516057,183.63,183.61,0.69]
[1760762762662,1.47516057,183.63,183.62,0.69]
[1760762763264,23.54,183.68,183.62,0.69]
[1760762763458,1.47516057,183.64,183.62,47.09]
[1760762763659,1.47516057,183.63,183.62,46.4]
[1760762764260,1.47516057,183.63,183.62,52.51602984]
[1760762765379,1.47516057,183.63,183.62,51.84602984]
[1760762765577,1.47516057,183.63,183.62,46.4]
[1760762765772,1.47516057,183.63,183.62,52.51602984]
[1760762766471,1.47516057,183.63,183.62,51.84602984]
[1760762766681,1.47516057,183.63,183.62,52.51602984]
[1760762766978,1.47516057,183.63,183.62,51.84602984]
[1760762767373,0.7,183.66,183.62,52.51602984]
[1760762767572,1.47516057,183.63,183.62,52.51602984]
[1760762768382,1.47516057,183.63,183.62,46.4]
[1760762768582,1.47516057,183.63,183.62,47.11]
[1760762768775,1.47516057,183.63,183.62,52.55602984]
[1760762769865,1.47516057,183.64,183.62,52.55602984]
[1760762770066,23.6,183.68,183.63,0.71]
[1760762770283,1.47516057,183.65,183.64,0.71]
[1760762770475,1.47516057,183.65,183.64,47.11]
[1760762771296,0.72,183.68,183.64,47.11]
[1760762771585,5.90064228,183.72,183.65,0.71]
[1760762771586,1.47516057,183.7,183.65,0.71]
[1760762771789,1.47516057,183.69,183.65,0.71]
[1760762771990,1.40023508,183.76,183.66,22.88]
[1760762772165,1.40023508,183.76,183.67,0.71]
[1760762772166,1.47516057,183.73,183.67,0.71]
[1760762772363,1.47516057,183.73,183.68,50.64]
[1760762772660,1.47516057,183.73,183.69,0.71]
[1760762773269,1.47516057,183.73,183.7,5.44365813]
[1760762773480,1.47516057,183.73,183.71,0.71]
[1760762773870,1.47516057,183.73,183.7,5.44365813]
[1760762774178,1.47516057,183.73,183.71,0.71]
[1760762774387,1.47516057,183.73,183.71,6.15308585]
[1760762774585,1.47516057,183.73,183.72,0.71]
[1760762775191,1.47516057,183.75,183.72,0.71]
[1760762775489,1.47516057,183.75,183.73,0.71]
[1760762776001,0.72,183.79,183.74,0.71]
[1760762776288,1.47516057,183.76,183.72,0.71]
[1760762776470,0.72,183.78,183.73,0.71]
[1760762776791,1.47516057,183.76,183.73,0.71]
[1760762777582,1.47516057,183.74,183.72,46.4]
[1760762777891,0.28432314,183.72,183.67,2.18286992]
[1760762778075,1.47516057,183.68,183.61,28.45]
[1760762778271,1.47516057,183.63,183.61,0.71]
[1760762778484,1.47516057,183.63,183.6,5.44662309]
[1760762778770,1.47516057,183.63,183.6,6.15662309]
[1760762778971,0.72,183.65,183.6,6.15662309]
[1760762779175,1.47516057,183.68,183.61,0.71]
[1760762779372,1.47516057,183.7,183.61,0.99432314]
[1760762779572,1.47516057,183.7,183.62,19.77110445]
[1760762779892,1.47516057,183.7,183.63,28.49]
[1760762780188,0.86216157,183.74,183.63,28.49]
[1760762780189,1.47516057,183.72,183.64,0.71]
[1760762781487,2.19516057,183.76,183.67,19.05591549]
[1760762781687,2.19516057,183.76,183.68,28.49]
[1760762781867,2.19516057,183.76,183.69,0.71]
[1760762782488,2.19516057,183.76,183.7,5.44365813]
[1760762782987,0.72,183.76,183.7,5.44365813]
[1760762783171,1.47516057,183.75,183.7,6.15365813]
[1760762783489,1.47516057,183.75,183.71,0.71]
[1760762783794,1.47516057,183.75,183.72,0.71]
[1760762784690,1.47516057,183.75,183.7,5.44363088]
[1760762784894,1.47516057,183.75,183.71,0.71]
[1760762785688,1.47516057,183.75,183.69,13.60971545]
[1760762785689,1.47516057,183.75,183.72,6.15306553]
[1760762786276,2.19516057,183.75,183.72,5.44306553]
[1760762786678,2.19516057,183.75,183.71,5.44335675]
[1760762787079,2.19516057,183.75,183.71,6.15335675]
[1760762787281,2.19516057,183.75,183.71,5.44335675]
[1760762787794,2.19516057,183.75,183.7,5.44365813]
[1760762787998,2.19516057,183.75,183.71,0.71]
[1760762788497,1.47516057,183.75,183.71,0.71]
[1760762788698,1.47516057,183.75,183.71,6.15312053]
[1760762789479,1.47516057,183.75,183.71,52.55312053]
[1760762789679,1.47516057,183.75,183.72,0.71]
[1760762790081,1.47516057,183.75,183.72,6.15306259]
[1760762790407,1.47516057,183.75,183.72,5.44306259]
[1760762791881,1.47516057,183.75,183.72,6.15306259]
[1760762793295,0.72,183.77,183.73,0.71]
[1760762793598,1.47516057,183.79,183.74,0.71]
[1760762793796,1.47516057,183.79,183.74,47.11]
[1760762793985,1.47516057,183.79,183.75,0.71]
[1760762794301,1.47516057,183.79,183.76,0.71]
[1760762794678,1.47516057,183.79,183.75,5.44215472]
[1760762794887,1.47516057,183.79,183.75,6.15215472]
[1760762796500,0.72,183.8,183.75,6.15215472]
[1760762796701,2.19516057,183.8,183.75,6.15215472]
[1760762797086,2.19516057,183.8,183.76,0.71]
[1760762797292,2.19516057,183.8,183.75,5.44215472]
[1760762797293,1.47516057,183.8,183.77,0.71]
[1760762798004,2.15516057,183.8,183.75,5.44215472]
[1760762798192,2.15516057,183.8,183.76,0.72]
[1760762798591,2.15516057,183.8,183.76,6.16170783]
[1760762798800,1.47516057,183.8,183.76,6.16170783]
[1760762800007,1.47516057,183.8,183.76,5.44170783]
[1760762800205,1.47516057,183.8,183.77,0.72]
[1760762800806,0.68,183.81,183.77,0.72]
[1760762801011,1.47516057,183.8,183.77,0.72]
[1760762803494,1.47516057,183.8,183.77,6.16155897]
[1760762804211,1.47516057,183.8,183.77,52.56155897]
[1760762805311,1.47516057,183.8,183.77,51.84155897]
[1760762805511,2.15516057,183.8,183.77,51.84155897]
[1760762805989,1.47516057,183.8,183.77,52.56155897]
[1760762808003,1.47516057,183.81,183.78,0.72]
[1760762808210,1.47516057,183.81,183.79,0.72]
[1760762808405,1.47516057,183.81,183.78,46.4]
[1760762808613,2.15516057,183.81,183.78,47.12]
[1760762808811,1.47516057,183.81,183.78,47.12]
[1760762809120,1.47516057,183.8,183.78,47.12]
[1760762809310,1.47516057,183.8,183.78,46.4]
[1760762809712,1.47516057,183.8,183.78,51.84123488]
[1760762810015,1.47516057,183.81,183.79,0.72]
[1760762810202,1.47516057,183.82,183.8,0.72]
[1760762810395,0.2,183.83,183.8,0.72]
[1760762810396,1.47516057,183.81,183.8,0.72]
[1760762810908,1.47516057,183.81,183.79,0.72]
[1760762811412,1.47516057,183.81,183.78,52.56123488]
[1760762812126,1.47516057,183.79,183.78,46.4]
[1760762814219,23.08,183.83,183.78,47.12]
[1760762814404,1.47516057,183.79,183.78,47.12]
[1760762815506,1.47516057,183.79,183.78,46.4]
[1760762816822,0.68,183.8,183.78,46.4]
[1760762817019,1.47516057,183.79,183.78,46.4]
[1760762817809,2.15516057,183.79,183.78,46.4]
[1760762818020,2.15516057,183.79,183.78,47.12]
[1760762818021,1.47516057,183.79,183.78,47.12]
[1760762819425,2.30005539,183.79,183.78,47.12]
[1760762819819,2.30005539,183.8,183.78,52.56128849]
[1760762820015,2.30005539,183.8,183.79,0.72]
[1760762820727,2.30005539,183.82,183.79,0.72]
[1760762820918,2.30005539,183.82,183.78,51.84128849]
[1760762821122,2.30005539,183.81,183.8,0.72]
[1760762821533,2.30005539,183.81,183.78,52.5612271]
[1760762821728,2.30005539,183.8,183.79,0.72]
[1760762822030,2.30005539,183.8,183.79,47.12]
[1760762822238,0.2,183.83,183.79,47.12]
[1760762822429,2.30005539,183.81,183.8,0.72]
[1760762824918,2.30005539,183.82,183.8,0.72]
[1760762825113,0.2,183.83,183.8,0.72]
[1760762825114,0.2,183.83,183.81,0.71]
[1760762825319,2.30005539,183.82,183.81,0.71]
[1760762825710,2.30005539,183.82,183.8,52.55050526]
[1760762826728,2.30005539,183.81,183.8,52.55050526]
[1760762827724,2.30005539,183.81,183.8,46.4]
[1760762829820,2.30005539,183.81,183.8,47.07]
[1760762830438,2.30005539,183.81,183.8,46.4]
[1760762832240,2.30005539,183.82,183.8,52.5106964]
[1760762832732,2.30005539,183.81,183.8,52.5106964]
[1760762834734,2.30005539,183.81,183.8,6.1106964]
[1760762836736,2.30005539,183.82,183.8,6.1106964]
[1760762837125,2.30005539,183.82,183.81,0.67]
[1760762837328,0.2,183.83,183.81,52.51040041]
[1760762837527,0.2,183.83,183.82,0.67]
[1760762838614,0.2,183.83,183.82,6.11010445]
[1760762839341,2.50005539,183.83,183.82,0.67]
[1760762840542,0.2,183.83,183.82,6.11010445]
[1760762841248,0.2,183.83,183.82,0.67]
[1760762841422,2.50005539,183.83,183.82,0.67]
[1760762841622,2.50005539,183.83,183.81,46.4]
[1760762842526,2.30005539,183.82,183.81,47.07]
[1760762845140,2.50005539,183.83,183.81,47.07]
[1760762846946,2.50005539,183.83,183.81,46.4]
[1760762847252,2.50005539,183.83,183.81,47.07]
[1760762847551,2.50005539,183.83,183.81,52.51031019]
[1760762850231,0.2,183.83,183.81,52.51031019]
[1760762850437,2.30005539,183.82,183.81,52.51031019]
[1760762852225,2.30005539,183.82,183.81,47.07]
[1760762852431,3.01005539,183.82,183.81,46.4]
[1760762852847,2.30005539,183.82,183.81,46.4]
[1760762855950,0.2,183.83,183.81,52.51040041]
[1760762856159,0.2,183.83,183.82,0.67]
[1760762857449,0.2,183.83,183.82,52.51010445]
[1760762857635,0.2,183.83,183.82,80.23010445]
[1760762857835,0.2,183.88,183.83,46.2]
[1760762858055,0.2,183.88,183.83,46.71]
[1760762858256,0.2,183.88,183.84,0.71]
[1760762859353,0.2,183.88,183.85,5.43921675]
[1760762859540,0.2,183.88,183.86,0.71]
[1760762859739,2.50005539,183.88,183.86,0.71]
[1760762860746,2.50005539,183.88,183.87,0.71]
[1760762860945,2.50005539,183.88,183.87,46.71]
[1760762861146,0.2,183.88,183.87,46.71]
[1760762862546,0.2,183.88,183.87,52.14862511]
[1760762864768,0.2,183.88,183.87,51.43862511]
[1760762864945,0.2,183.88,183.87,52.14862511]
[1760762865147,0.2,183.88,183.87,46.71]
[1760762865342,3.20005539,183.88,183.87,46.0]
[1760762867967,0.9,183.88,183.87,46.0]
[1760762868181,3.20005539,183.88,183.87,46.0]
[1760762869766,2.50005539,183.88,183.87,46.0]
[1760762875777,3.20005539,183.88,183.87,46.0]
[1760762876359,2.50005539,183.88,183.87,46.0]
[1760762880180,0.2,183.88,183.87,46.71]
[1760762880352,2.50005539,183.88,183.87,46.71]
[1760762881471,1.67074116,183.88,183.87,46.0]
[1760762881984,1.67074116,183.88,183.87,46.71]
[1760762883209,1.67074116,183.88,183.87,46.0]
[1760762884170,2.37074116,183.88,183.83,51.43970024]
[1760762884368,2.37074116,183.88,183.84,0.69]
[1760762884369,1.47074116,183.85,183.84,0.69]
[1760762884563,23.08,183.88,183.83,46.0]
[1760762884766,1.47074116,183.85,183.83,46.69]
[1760762885286,1.47074116,183.85,183.84,0.69]
[1760762886386,1.47074116,183.86,183.84,0.69]
[1760762888081,1.47074116,183.86,183.85,0.66]
[1760762888584,0.2,183.88,183.85,0.66]
[1760762888777,1.47074116,183.86,183.85,0.66]
[1760762889892,1.47074116,183.86,183.85,46.66]
[1760762890490,1.47074116,183.86,183.85,46.0]
[1760762895596,0.2,183.88,183.85,0.66]
[1760762896311,1.47074116,183.86,183.84,2.84132242]
[1760762896606,1.47074116,183.86,183.85,0.66]
[1760762897078,1.47074116,183.86,183.84,0.66]
[1760762897280,1.47074116,183.85,183.84,0.66]
[1760762901198,1.47074116,183.85,183.84,46.66]
[1760762901391,2.18074116,183.85,183.82,46.0]
[1760762901589,1.47074116,183.83,183.82,46.0]
[1760762902197,1.47074116,183.83,183.8,0.66]
[1760762902395,1.47074116,183.83,183.81,0.66]
[1760762903007,0.71,183.82,183.79,48.18179834]
[1760762903194,1.47074116,183.81,183.79,46.66]
[1760762903502,1.47074116,183.81,183.8,0.66]
[1760762904097,1.47074116,183.81,183.78,46.0]
[1760762904304,1.47074116,183.81,183.79,0.66]
[1760762904680,1.47074116,183.81,183.78,46.0]
[1760762904884,1.47074116,183.81,183.79,0.66]
[1760762905302,1.47074116,183.81,183.78,0.66]
[1760762905500,1.47074116,183.79,183.76,5.4418073]
[1760762905897,22.88,183.84,183.76,5.4418073]
[1760762906208,1.47074116,183.81,183.77,0.66]
[1760762907105,1.47074116,183.81,183.77,6.10150799]
[1760762907303,1.47074116,183.81,183.78,0.66]
[1760762907498,1.47074116,183.81,183.79,0.66]
[1760762908403,1.47074116,183.8,183.77,0.66]
[1760762908608,1.47074116,183.79,183.78,0.66]
[1760762909698,1.47074116,183.79,183.78,23.54]
[1760762909903,1.47074116,183.8,183.78,23.54]
[1760762910217,1.47074116,183.8,183.79,0.66]
[1760762910518,1.47074116,183.8,183.78,23.54]
[1760762910724,1.47074116,183.8,183.78,46.66]
[1760762911715,1.47074116,183.8,183.78,46.0]
[1760762911920,1.47074116,183.82,183.79,0.66]
[1760762912613,1.47074116,183.81,183.8,0.66]
[1760762912789,1.47074116,183.81,183.78,51.44118701]
[1760762912994,1.47074116,183.79,183.78,46.0]
[1760762914116,1.47074116,183.79,183.78,46.66]
[1760762916213,1.47074116,183.79,183.78,46.0]
[1760762916511,1.47074116,183.79,183.78,46.66]
[1760762918526,1.47074116,183.8,183.78,46.66]
[1760762918827,1.47074116,183.79,183.78,46.66]
[1760762919410,1.47074116,183.79,183.78,46.0]
[1760762919622,1.47074116,183.79,183.78,46.71]
[1760762920532,1.47074116,183.79,183.78,46.0]
[1760762920708,1.47074116,183.79,183.78,46.71]
[1760762922133,1.47074116,183.79,183.78,46.0]
[1760762922307,1.47074116,183.79,183.78,46.71]
[1760762925327,1.47074116,183.79,183.78,46.0]
[1760762925515,1.47074116,183.79,183.78,46.71]
[1760762929115,1.47074116,183.79,183.78,46.0]
[1760762929632,1.47074116,183.79,183.78,46.71]
[1760762930037,1.47074116,183.79,183.78,46.0]
[1760762930217,2.13074116,183.79,183.76,48.18215542]
[1760762930545,1.47074116,183.77,183.76,46.0]
[1760762930710,2.13074116,183.77,183.76,46.0]
[1760762931317,1.47074116,183.77,183.76,46.0]
[1760762932516,2.13074116,183.77,183.76,46.0]
[1760762932829,1.47074116,183.77,183.76,46.0]
[1760762934620,1.47074116,183.77,183.7,13.60845585]
[1760762934621,25.97526237,183.77,183.7,46.71]
[1760762934816,1.47074116,183.73,183.7,46.71]
[1760762935138,1.47074116,183.73,183.71,0.71]
[1760762935830,1.47074116,183.73,183.71,6.1533143]
[1760762936035,1.47074116,183.73,183.72,0.71]
[1760762936820,1.47074116,183.76,183.72,52.15306553]
[1760762937020,0.66,183.82,183.73,0.71]
[1760762937227,1.47074116,183.8,183.73,46.71]
[1760762937425,1.47074116,183.8,183.74,0.71]
[1760762938138,1.47074116,183.8,183.75,5.44217687]
[1760762938335,1.47074116,183.8,183.76,0.71]
[1760762938638,2.13074116,183.8,183.77,0.71]
[1760762940137,21.80637213,183.85,183.78,0.71]
[1760762940138,17.02705856,183.85,183.78,0.71]
[1760762940436,1.47074116,183.82,183.78,0.71]
[1760762940638,1.47074116,183.8,183.76,0.71]
[1760762940937,1.47074116,183.78,183.73,0.71]
[1760762941118,1.47074116,183.76,183.74,0.71]
[1760762941318,0.66,183.75,183.71,0.71]
[1760762941538,1.47074116,183.74,183.71,0.71]
[1760762941733,1.47074116,183.74,183.71,17.08152446]
[1760762941925,0.96444719,183.79,183.69,5.44393118]
[1760762942126,1.47074116,183.72,183.7,0.71]
[1760762942333,1.47074116,183.72,183.7,46.71]
[1760762942643,1.47074116,183.72,183.7,48.89298905]
[1760762942941,1.47074116,183.72,183.71,0.71]
[1760762943334,2.3019059,183.73,183.71,0.71]
[1760762943539,2.3019059,183.75,183.71,0.71]
[1760762943834,2.3019059,183.75,183.7,48.18298905]
[1760762943835,3.0219059,183.75,183.72,0.68]
[1760762944036,2.3019059,183.75,183.72,0.68]
[1760762944336,2.3019059,183.75,183.73,0.68]
[1760762944541,2.3019059,183.75,183.74,0.68]
[1760762944841,2.3019059,183.77,183.74,0.68]
[1760762946326,22.88,183.79,183.75,0.68]
[1760762946533,2.3019059,183.79,183.76,0.68]
[1760762947017,2.3019059,183.79,183.76,46.68]
[1760762947436,2.3019059,183.77,183.76,46.0]
[1760762948646,3.0219059,183.77,183.76,46.0]
[1760762949045,2.3019059,183.77,183.76,46.0]
[1760762949527,3.0219059,183.77,183.76,46.0]
[1760762951733,2.3019059,183.77,183.76,46.0]
[1760762951923,2.3019059,183.77,183.76,46.66]
[1760762953043,2.3019059,183.77,183.76,46.0]
[1760762954965,3.0219059,183.77,183.76,46.0]
[1760762955353,2.3019059,183.77,183.76,46.0]
[1760762961154,3.0219059,183.77,183.76,46.0]
[1760762961753,2.3019059,183.77,183.76,46.0]
[1760762962460,3.0219059,183.77,183.76,46.0]
[1760762962861,2.3019059,183.77,183.76,46.0]
[1760762963857,2.3019059,183.77,183.74,0.66]
[1760762964068,2.3019059,183.77,183.75,0.66]
[1760762965037,0.72,183.76,183.72,51.44303974]
[1760762965262,2.3019059,183.74,183.72,51.44303974]
[1760762965460,2.3019059,183.74,183.73,0.66]
[1760762966568,2.3019059,183.74,183.72,46.0]
[1760762966770,3.0219059,183.74,183.72,48.3019059]
[1760762967067,2.3019059,183.74,183.72,46.0]
[1760762967271,2.3019059,183.74,183.72,46.66]
[1760762968759,2.3019059,183.74,183.72,46.0]
[1760762969443,0.72,183.73,183.72,46.0]
[1760762969743,0.72,183.73,183.67,0.66]
[1760762969744,3.97904895,183.73,183.67,0.66]
[1760762969944,2.3019059,183.7,183.67,0.66]
[1760762971244,2.3019059,183.68,183.66,3.55075025]
[1760762971858,2.3019059,183.68,183.67,0.66]
[1760762972443,2.3019059,183.69,183.67,0.66]
[1760762974768,2.3019059,183.68,183.67,0.66]
[1760762975655,2.3019059,183.68,183.67,46.66]
[1760762976059,0.28432314,183.73,183.67,52.10454728]
[1760762976363,2.3019059,183.74,183.68,0.66]
[1760762976564,2.3019059,183.74,183.68,17.03241793]
[1760762976768,2.3019059,183.74,183.69,0.66]
[1760762977078,0.68016106,183.78,183.69,0.66]
[1760762977079,2.3019059,183.78,183.69,46.66]
[1760762977392,2.3019059,183.76,183.7,0.66]
[1760762977684,2.3019059,183.76,183.71,5.44336182]
[1760762977888,2.3019059,183.76,183.72,0.71]
[1760762978890,2.3019059,183.76,183.72,6.15281832]
[1760762979091,2.3019059,183.76,183.73,0.71]
[1760762979292,2.3019059,183.76,183.74,0.71]
[1760762979794,2.3019059,183.76,183.72,46.71]
[1760762979999,2.3019059,183.76,183.73,0.71]
[1760762980471,2.3019059,183.76,183.74,0.71]
[1760762983294,2.3019059,183.76,183.75,0.71]
[1760762983493,2.3019059,183.77,183.75,0.71]
[1760762983677,2.3019059,183.77,183.72,46.0]
[1760762983882,2.3019059,183.77,183.73,0.71]
[1760762984572,2.3019059,183.77,183.73,46.71]
[1760762984774,2.3019059,183.77,183.74,0.71]
[1760762984992,2.3019059,183.77,183.75,0.71]
[1760762986385,2.9619059,183.76,183.73,46.0]
[1760762986689,2.3019059,183.75,183.73,46.0]
[1760762988982,2.3019059,183.74,183.73,46.0]
[1760762989587,2.3019059,183.74,183.73,46.71]
[1760762989786,0.66,183.77,183.73,46.71]
[1760762989997,2.3019059,183.75,183.74,0.71]
[1760762990498,2.3019059,183.76,183.74,46.71]
[1760762990887,2.3019059,183.76,183.75,0.71]
[1760762991273,0.28432314,183.81,183.75,46.71]
[1760762991498,2.3019059,183.78,183.76,0.71]
[1760762992980,2.3019059,183.78,183.75,46.0]
[1760762993205,2.3019059,183.77,183.75,46.71]
[1760762993704,2.3019059,183.77,183.76,0.71]
[1760762994401,2.3019059,183.77,183.75,46.0]
[1760762994577,2.3019059,183.77,183.75,46.71]
[1760762994777,0.66,183.76,183.75,46.0]
[1760762995386,25.1819059,183.77,183.75,46.0]
[1760762995585,0.66,183.76,183.75,46.0]
[1760762996489,0.66,183.76,183.71,51.4432944]
[1760762996690,2.3019059,183.72,183.71,52.1532944]
[1760762997503,2.3019059,183.72,183.71,46.0]
[1760762998087,2.3019059,183.72,183.71,52.15336182]
[1760762998310,2.3019059,183.74,183.71,52.15336182]
[1760762998499,2.3019059,183.76,183.72,0.71]
[1760762998702,2.3019059,183.76,183.72,52.15278478]
[1760762998904,2.3019059,183.76,183.73,0.71]
[1760762999223,2.3019059,183.76,183.74,0.71]
[1760763000917,2.3019059,183.76,183.72,46.71]
[1760763001122,2.3019059,183.74,183.72,46.0]
[1760763001815,2.3019059,183.73,183.72,46.0]
[1760763002218,2.3019059,183.73,183.72,46.71]
[1760763002913,0.28432314,183.78,183.73,46.0]
[1760763002914,2.3019059,183.75,183.73,46.0]
[1760763003220,2.3019059,183.75,183.74,0.71]
[1760763003791,2.3019059,183.77,183.74,46.71]
[1760763003997,2.3019059,183.77,183.75,6.10217687]
[1760763004212,2.3019059,183.77,183.76,0.66]
[1760763004512,2.3019059,183.77,183.76,46.66]
[1760763004697,2.3019059,183.79,183.76,46.66]
[1760763004897,2.3019059,183.79,183.77,0.66]
[1760763005512,1.47220032,183.79,183.77,0.66]
[1760763006206,1.47220032,183.79,183.77,46.66]
[1760763006798,0.96432314,183.82,183.77,46.66]
[1760763007007,1.47220032,183.79,183.77,46.66]
[1760763007407,1.47220032,183.78,183.77,46.66]
[1760763008328,1.47220032,183.78,183.77,46.0]
[1760763010004,2.18220032,183.78,183.77,46.0]
[1760763010203,1.47220032,183.78,183.77,46.0]
[1760763020834,1.47220032,183.78,183.77,46.67]
[1760763030042,1.47220032,183.78,183.77,46.0]
[1760763030240,2.18220032,183.78,183.77,46.0]
[1760763030423,1.47220032,183.78,183.77,46.0]
[1760763032236,2.18220032,183.78,183.77,46.0]
[1760763034330,1.47220032,183.78,183.77,46.0]
[1760763037362,1.47220032,183.78,183.76,0.67]
[1760763037534,1.47220032,183.78,183.74,51.4424598]